[Event "*** Titled Tuesday 3|2 Blitz"]
[Site "Chess.com"]
[Date "2016.01.05"]
[Round "4"]
[White "motivated_bishop"]
[Black "MateusViageiro"]
[Result "1-0"]
[WhiteElo "2274"]
[BlackElo "2241"]
[TimeControl "180+2"]
[EndTime "11:49:31 PST"]
[Termination "motivated_bishop won by resignation"]

1. d4 {[%clk 0:03:01.9]} 1... Nf6 {[%clk 0:02:59.8]} 2. c4 {[%clk 0:03:00]} 2...
e6 {[%clk 0:03:01]} 3. Nc3 {[%clk 0:03:01.1]} 3... Bb4 {[%clk 0:03:01.4]} 4. Qc2
{[%clk 0:03:02.2]} 4... O-O {[%clk 0:03:00.9]} 5. Nf3 {[%clk 0:03:02.6]} 5... b6
{[%clk 0:03:01.7]} 6. e4 {[%clk 0:03:03]} 6... d5 {[%clk 0:03:02]} 7. cxd5
{[%clk 0:03:03.5]} 7... exd5 {[%clk 0:03:01.4]} 8. e5 {[%clk 0:03:04.9]} 8...
Ne4 {[%clk 0:03:01.7]} 9. Bd3 {[%clk 0:03:06.2]} 9... f5 {[%clk 0:03:00]} 10.
exf6 {[%clk 0:03:06]} 10... Nxf6 {[%clk 0:02:41.4]} 11. O-O {[%clk 0:03:05.7]}
11... Ba6 {[%clk 0:02:27.5]} 12. Bxa6 {[%clk 0:02:59.1]} 12... Nxa6 {[%clk
0:02:27.4]} 13. Qa4 {[%clk 0:02:47.2]} 13... Bxc3 {[%clk 0:02:23.1]} 14. bxc3
{[%clk 0:02:43]} 14... Nb8 {[%clk 0:02:22.4]} 15. Ba3 {[%clk 0:02:29.7]} 15...
Re8 {[%clk 0:02:19.3]} 16. Rfe1 {[%clk 0:02:08.4]} 16... Nbd7 {[%clk 0:01:59.6]}
17. Rxe8+ {[%clk 0:02:08]} 17... Qxe8 {[%clk 0:02:00.1]} 18. Re1 {[%clk
0:02:08.6]} 18... Qg6 {[%clk 0:01:49]} 19. Qc6 {[%clk 0:01:38.5]} 19... Re8
{[%clk 0:01:46.1]} 20. Rxe8+ {[%clk 0:01:12.9]} 20... Qxe8 {[%clk 0:01:43]} 21.
Qxc7 {[%clk 0:01:12]} 21... Qe2 {[%clk 0:01:37.3]} 22. h3 {[%clk 0:00:22.8]}
22... Qxa2 {[%clk 0:01:34.2]} 23. Qd8+ {[%clk 0:00:16.6]} 23... Kf7 {[%clk
0:01:29.7]} 24. Qe7+ {[%clk 0:00:16.8]} 24... Kg6 {[%clk 0:01:30.3]} 25. Ne5+
{[%clk 0:00:12.1]} 25... Nxe5 {[%clk 0:01:18.3]} 26. dxe5 {[%clk 0:00:14]} 26...
Qa1+ {[%clk 0:00:47]} 27. Kh2 {[%clk 0:00:14.7]} 27... Qxc3 {[%clk 0:00:47.7]}
28. exf6 {[%clk 0:00:13.1]} 28... Qxf6 {[%clk 0:00:48.4]} 29. Qe8+ {[%clk
0:00:11]} 29... Qf7 {[%clk 0:00:48.6]} 30. Qc6+ {[%clk 0:00:11.9]} 30... Qf6
{[%clk 0:00:44.4]} 31. Qxd5 {[%clk 0:00:11.3]} 31... Qxf2 {[%clk 0:00:43.3]} 32.
Qd3+ {[%clk 0:00:08.4]} 32... Qf5 {[%clk 0:00:43.7]} 33. Qg3+ {[%clk 0:00:08.6]}
33... Qg5 {[%clk 0:00:41.8]} 34. Qd3+ {[%clk 0:00:09.4]} 34... Qf5 {[%clk
0:00:42.7]} 35. Qd6+ {[%clk 0:00:10.6]} 35... Qf6 {[%clk 0:00:43.6]} 36. Qc7
{[%clk 0:00:10]} 36... Qf7 {[%clk 0:00:41.7]} 37. Qg3+ {[%clk 0:00:09.8]} 37...
Kf6 {[%clk 0:00:38.1]} 38. Bb2+ {[%clk 0:00:10.3]} 38... Ke6 {[%clk 0:00:38.4]}
39. Bxg7 {[%clk 0:00:10.4]} 39... Qf5 {[%clk 0:00:34.7]} 40. Qe3+ {[%clk
0:00:07.5]} 40... Kf7 {[%clk 0:00:34.5]} 41. Be5 {[%clk 0:00:06.8]} 41... h5
{[%clk 0:00:31.2]} 42. Bg3 {[%clk 0:00:07.2]} 42... Kg6 {[%clk 0:00:28.2]} 43.
Qe8+ {[%clk 0:00:06.5]} 43... Qf7 {[%clk 0:00:28.7]} 44. Qxf7+ {[%clk
0:00:06.4]} 44... Kxf7 {[%clk 0:00:29.1]} 45. Bb8 {[%clk 0:00:07.4]} 45... a6
{[%clk 0:00:29.6]} 46. Bc7 {[%clk 0:00:06.5]} 46... b5 {[%clk 0:00:29.4]} 47.
Ba5 {[%clk 0:00:07.7]} 47... Ke6 {[%clk 0:00:30]} 48. g4 {[%clk 0:00:08.5]}
48... hxg4 {[%clk 0:00:29.9]} 49. hxg4 {[%clk 0:00:09.8]} 49... Kd5 {[%clk
0:00:29.2]} 50. g5 {[%clk 0:00:06.4]} 50... Kc4 {[%clk 0:00:31.1]} 51. g6 {[%clk
0:00:07.2]} 51... b4 {[%clk 0:00:31.5]} 52. g7 {[%clk 0:00:07.8]} 52... Kb5
{[%clk 0:00:32.1]} 53. Bxb4 {[%clk 0:00:07.9]} 53... Kxb4 {[%clk 0:00:32.9]} 54.
g8=Q {[%clk 0:00:09.3]} 54... a5 {[%clk 0:00:34.8]} 55. Qa2 {[%clk 0:00:10.2]}
55... a4 {[%clk 0:00:35.6]} 56. Kg3 {[%clk 0:00:11.3]} 56... a3 {[%clk
0:00:36.8]} 57. Kf3 {[%clk 0:00:12.7]} 57... Ka4 {[%clk 0:00:37.7]} 58. Ke3
{[%clk 0:00:13.8]} 1-0

[Event "*** Titled Tuesday 3|2 Blitz"]
[Site "Chess.com"]
[Date "2016.01.05"]
[Round "4"]
[White "Tesla37"]
[Black "iturrizaga"]
[Result "1-0"]
[WhiteElo "2532"]
[BlackElo "2386"]
[TimeControl "180+2"]
[EndTime "11:49:42 PST"]
[Termination "Tesla37 won by resignation"]

1. e4 {[%clk 0:03:01.9]} 1... c5 {[%clk 0:03:00.2]} 2. d3 {[%clk 0:03:02.6]}
2... g6 {[%clk 0:02:59.7]} 3. g3 {[%clk 0:03:03.1]} 3... Nc6 {[%clk 0:03:00.3]}
4. Bg2 {[%clk 0:03:04.4]} 4... Bg7 {[%clk 0:02:58.3]} 5. f4 {[%clk 0:03:05.2]}
5... d6 {[%clk 0:02:54.1]} 6. Nf3 {[%clk 0:03:05.8]} 6... e5 {[%clk 0:02:51.4]}
7. O-O {[%clk 0:03:04.1]} 7... Nge7 {[%clk 0:02:51.2]} 8. Nc3 {[%clk 0:03:02.3]}
8... O-O {[%clk 0:02:51.2]} 9. f5 {[%clk 0:03:03]} 9... gxf5 {[%clk 0:02:51.4]}
10. Nh4 {[%clk 0:03:03.9]} 10... fxe4 {[%clk 0:02:51.4]} 11. dxe4 {[%clk
0:03:01.6]} 11... Nd4 {[%clk 0:02:52.4]} 12. Rf2 {[%clk 0:02:53.6]} 12... Be6
{[%clk 0:02:46.9]} 13. Qh5 {[%clk 0:02:50.6]} 13... f6 {[%clk 0:02:41.4]} 14.
Nd5 {[%clk 0:02:36]} 14... Qd7 {[%clk 0:02:22.7]} 15. Nxe7+ {[%clk 0:02:27]}
15... Qxe7 {[%clk 0:02:21.6]} 16. c3 {[%clk 0:02:28.5]} 16... Nc6 {[%clk
0:02:21.2]} 17. Nf5 {[%clk 0:02:27.8]} 17... Bxf5 {[%clk 0:02:21.6]} 18. exf5
{[%clk 0:02:28]} 18... e4 {[%clk 0:02:19.3]} 19. Qd1 {[%clk 0:02:25.6]} 19...
Rfe8 {[%clk 0:02:09.9]} 20. Bf4 {[%clk 0:02:23.1]} 20... Qf7 {[%clk 0:01:52.9]}
21. Qxd6 {[%clk 0:02:13.9]} 21... Bf8 {[%clk 0:01:52.8]} 22. Qd1 {[%clk
0:02:09.1]} 22... Rad8 {[%clk 0:01:52.3]} 23. Qg4+ {[%clk 0:02:08.1]} 23... Kh8
{[%clk 0:01:51.8]} 24. Re1 {[%clk 0:02:07.7]} 24... Qxa2 {[%clk 0:01:40.2]} 25.
Qh5 {[%clk 0:01:51.7]} 25... Bg7 {[%clk 0:01:33.6]} 26. h3 {[%clk 0:01:46.2]}
26... Re7 {[%clk 0:01:11.8]} 27. Kh2 {[%clk 0:01:26.3]} 27... Rde8 {[%clk
0:01:10.3]} 28. Bd6 {[%clk 0:01:25.8]} 28... Qf7 {[%clk 0:01:05.3]} 29. Qxf7
{[%clk 0:01:23]} 29... Rxf7 {[%clk 0:01:06.1]} 30. Rxe4 {[%clk 0:01:24.5]} 30...
Rxe4 {[%clk 0:01:03.7]} 31. Bxe4 {[%clk 0:01:24.5]} 31... Bf8 {[%clk 0:01:04.6]}
32. Bd5 {[%clk 0:00:34.5]} 32... Rd7 {[%clk 0:00:10.4]} 33. Bxc6 {[%clk
0:00:35.3]} 33... Rxd6 {[%clk 0:00:10]} 34. Bxb7 {[%clk 0:00:36.7]} 34... Kg7
{[%clk 0:00:10.7]} 35. Kg2 {[%clk 0:00:36.5]} 35... a5 {[%clk 0:00:12]} 36. Re2
{[%clk 0:00:35.1]} 36... Rb6 {[%clk 0:00:13]} 37. Bd5 {[%clk 0:00:34.9]} 37...
Bd6 {[%clk 0:00:14.5]} 38. Kf3 {[%clk 0:00:35.4]} 38... Be5 {[%clk 0:00:15.9]}
39. Bc4 {[%clk 0:00:36]} 39... h6 {[%clk 0:00:17.3]} 40. g4 {[%clk 0:00:37]}
40... Rd6 {[%clk 0:00:18.5]} 41. Ke4 {[%clk 0:00:37.3]} 41... h5 {[%clk
0:00:19.7]} 42. gxh5 {[%clk 0:00:37.1]} 42... Kh6 {[%clk 0:00:21.2]} 43. Bf7
{[%clk 0:00:34.3]} 43... Rd7 {[%clk 0:00:22.5]} 44. Be6 {[%clk 0:00:31.2]} 44...
Rd1 {[%clk 0:00:05.6]} 45. Bf7 {[%clk 0:00:29.3]} 45... a4 {[%clk 0:00:07.5]}
46. Be8 {[%clk 0:00:27.3]} 46... a3 {[%clk 0:00:08.2]} 47. bxa3 {[%clk
0:00:28.3]} 47... Bxc3 {[%clk 0:00:09.8]} 48. a4 {[%clk 0:00:28.6]} 48... Rd4+
{[%clk 0:00:09.9]} 49. Kf3 {[%clk 0:00:27.7]} 49... Rd3+ {[%clk 0:00:11.1]} 50.
Kg2 {[%clk 0:00:26.6]} 50... c4 {[%clk 0:00:10.3]} 51. Bb5 {[%clk 0:00:26.4]}
51... Rd4 {[%clk 0:00:09.9]} 52. Rc2 {[%clk 0:00:26.3]} 52... Ba5 {[%clk
0:00:08.8]} 53. Rxc4 {[%clk 0:00:25.9]} 53... Rd2+ {[%clk 0:00:10.4]} 54. Kf3
{[%clk 0:00:26.2]} 54... Kxh5 {[%clk 0:00:12.3]} 55. h4 {[%clk 0:00:26.3]} 55...
Rd3+ {[%clk 0:00:13.2]} 56. Ke2 {[%clk 0:00:25.9]} 56... Rd8 {[%clk 0:00:13.8]}
57. Bc6 {[%clk 0:00:25.2]} 57... Bc7 {[%clk 0:00:14.2]} 58. Bf3+ {[%clk
0:00:25.7]} 1-0

[Event "*** Titled Tuesday 3|2 Blitz"]
[Site "Chess.com"]
[Date "2016.01.05"]
[Round "4"]
[White "DeviatkinAndrey"]
[Black "Gergo85"]
[Result "0-1"]
[WhiteElo "2490"]
[BlackElo "2365"]
[TimeControl "180+2"]
[EndTime "11:49:58 PST"]
[Termination "Gergo85 won by resignation"]

1. d4 {[%clk 0:03:01.9]} 1... d5 {[%clk 0:03:00.3]} 2. c4 {[%clk 0:03:02]} 2...
dxc4 {[%clk 0:03:01.5]} 3. e3 {[%clk 0:02:58.9]} 3... e5 {[%clk 0:03:02.2]} 4.
Bxc4 {[%clk 0:02:57.8]} 4... exd4 {[%clk 0:03:03]} 5. exd4 {[%clk 0:02:59]} 5...
Bd6 {[%clk 0:03:04.7]} 6. Nf3 {[%clk 0:02:53.6]} 6... Nf6 {[%clk 0:03:05.7]} 7.
O-O {[%clk 0:02:52]} 7... O-O {[%clk 0:03:06.6]} 8. h3 {[%clk 0:02:52.6]} 8...
h6 {[%clk 0:03:06]} 9. Nc3 {[%clk 0:02:49.8]} 9... Nc6 {[%clk 0:03:07.1]} 10.
Re1 {[%clk 0:02:48.5]} 10... Bf5 {[%clk 0:03:07.8]} 11. a3 {[%clk 0:02:48.1]}
11... a6 {[%clk 0:03:07.1]} 12. Be3 {[%clk 0:02:46.3]} 12... Qd7 {[%clk
0:03:05]} 13. d5 {[%clk 0:02:34.9]} 13... Ne5 {[%clk 0:02:41.4]} 14. Nxe5 {[%clk
0:02:26.5]} 14... Bxe5 {[%clk 0:02:42.6]} 15. Bd4 {[%clk 0:02:27.2]} 15... Bxd4
{[%clk 0:02:33.5]} 16. Qxd4 {[%clk 0:02:27.6]} 16... Rfe8 {[%clk 0:02:27.2]} 17.
Rad1 {[%clk 0:02:20.5]} 17... Rxe1+ {[%clk 0:02:27]} 18. Rxe1 {[%clk 0:02:21.1]}
18... Re8 {[%clk 0:02:27.9]} 19. Re5 {[%clk 0:02:17.3]} 19... Bg6 {[%clk
0:02:05.5]} 20. f4 {[%clk 0:02:15.9]} 20... Qd6 {[%clk 0:01:53.8]} 21. g4 {[%clk
0:01:57]} 21... Bc2 {[%clk 0:01:32.4]} 22. Kg2 {[%clk 0:01:55.4]} 22... b5
{[%clk 0:01:16.2]} 23. Be2 {[%clk 0:01:46]} 23... Rd8 {[%clk 0:01:14.8]} 24. Bf3
{[%clk 0:01:43.7]} 24... Nd7 {[%clk 0:01:08.1]} 25. Re2 {[%clk 0:01:42.7]} 25...
Bb3 {[%clk 0:01:03.3]} 26. Ne4 {[%clk 0:01:33.2]} 26... Qb6 {[%clk 0:01:04.2]}
27. Qxb6 {[%clk 0:00:55.7]} 27... Nxb6 {[%clk 0:01:06.1]} 28. Nc5 {[%clk
0:00:56.9]} 28... Bxd5 {[%clk 0:01:00.7]} 29. Nxa6 {[%clk 0:00:58]} 29... Bc4
{[%clk 0:00:47.6]} 30. Rf2 {[%clk 0:00:49.3]} 30... Nd5 {[%clk 0:00:39.5]} 31.
Bxd5 {[%clk 0:00:37.3]} 31... Bxd5+ {[%clk 0:00:40.5]} 32. Kg3 {[%clk
0:00:37.4]} 32... c6 {[%clk 0:00:41.8]} 33. Rd2 {[%clk 0:00:23.1]} 33... Re8
{[%clk 0:00:42.6]} 34. Kf2 {[%clk 0:00:22.9]} 34... Re4 {[%clk 0:00:42.4]} 35.
f5 {[%clk 0:00:23.9]} 35... Rf4+ {[%clk 0:00:41.3]} 36. Kg3 {[%clk 0:00:19.4]}
36... Rf3+ {[%clk 0:00:42.2]} 37. Kh2 {[%clk 0:00:20.7]} 37... Re3 {[%clk
0:00:37.3]} 38. Nc5 {[%clk 0:00:20.7]} 38... h5 {[%clk 0:00:33.5]} 39. gxh5
{[%clk 0:00:20.6]} 39... Rf3 {[%clk 0:00:33.6]} 40. a4 {[%clk 0:00:21.1]} 40...
bxa4 {[%clk 0:00:34.2]} 41. Nxa4 {[%clk 0:00:21.7]} 41... Rxf5 {[%clk
0:00:35.6]} 42. h6 {[%clk 0:00:18.7]} 42... g6 {[%clk 0:00:35.1]} 43. Nc3 {[%clk
0:00:18.7]} 43... Be6 {[%clk 0:00:36.3]} 44. Ne4 {[%clk 0:00:18.8]} 44... Kh7
{[%clk 0:00:34.9]} 45. Kg3 {[%clk 0:00:19]} 45... Kxh6 {[%clk 0:00:36]} 46. Rc2
{[%clk 0:00:17.4]} 46... Re5 {[%clk 0:00:31.8]} 47. Nd6 {[%clk 0:00:17.6]} 47...
Re3+ {[%clk 0:00:32.5]} 48. Kf4 {[%clk 0:00:17.4]} 48... Rxh3 {[%clk 0:00:31.7]}
49. Rxc6 {[%clk 0:00:18.7]} 49... Rb3 {[%clk 0:00:31.3]} 50. Rc2 {[%clk
0:00:18.8]} 50... g5+ {[%clk 0:00:31.1]} 51. Ke5 {[%clk 0:00:18.9]} 51... Kg6
{[%clk 0:00:30.9]} 52. Ne4 {[%clk 0:00:18.9]} 52... Re3 {[%clk 0:00:28]} 53. Rc6
{[%clk 0:00:17.7]} 53... Rb3 {[%clk 0:00:16.9]} 54. Rc2 {[%clk 0:00:10.8]} 54...
Rb5+ {[%clk 0:00:16.9]} 55. Kd6 {[%clk 0:00:10.7]} 55... Rd5+ {[%clk 0:00:17.6]}
56. Ke7 {[%clk 0:00:11.2]} 56... Re5 {[%clk 0:00:16.7]} 57. Nd6 {[%clk
0:00:04.4]} 57... Bf5+ {[%clk 0:00:15.1]} 58. Kf8 {[%clk 0:00:03.3]} 58... Bxc2
{[%clk 0:00:15.7]} 59. b4 {[%clk 0:00:04]} 59... g4 {[%clk 0:00:16.7]} 60. Nxf7
{[%clk 0:00:03.9]} 60... Rf5 {[%clk 0:00:16.3]} 0-1

[Event "*** Titled Tuesday 3|2 Blitz"]
[Site "Chess.com"]
[Date "2016.01.05"]
[Round "5"]
[White "Iball95"]
[Black "Er_is_geen_hoop_meer"]
[Result "1-0"]
[WhiteElo "2398"]
[BlackElo "2310"]
[TimeControl "180+2"]
[EndTime "11:54:13 PST"]
[Termination "Iball95 won by resignation"]

1. Nf3 {[%clk 0:03:01.9]} 1... Nf6 {[%clk 0:02:58.6]} 2. c4 {[%clk 0:03:03.2]}
2... g6 {[%clk 0:02:59.6]} 3. g3 {[%clk 0:03:03]} 3... Bg7 {[%clk 0:03:01.5]} 4.
Bg2 {[%clk 0:03:04.5]} 4... O-O {[%clk 0:03:03.4]} 5. Nc3 {[%clk 0:03:05.8]}
5... d6 {[%clk 0:03:05.3]} 6. O-O {[%clk 0:03:07.1]} 6... e5 {[%clk 0:03:06]} 7.
d4 {[%clk 0:03:08.4]} 7... Nbd7 {[%clk 0:03:07]} 8. h3 {[%clk 0:03:03.1]} 8...
h6 {[%clk 0:03:07.4]} 9. e4 {[%clk 0:02:58.5]} 9... Nh7 {[%clk 0:03:07.8]} 10.
Be3 {[%clk 0:02:51.4]} 10... Ng5 {[%clk 0:03:06.7]} 11. Qd2 {[%clk 0:02:46.9]}
11... Nxf3+ {[%clk 0:03:03.7]} 12. Bxf3 {[%clk 0:02:46.3]} 12... exd4 {[%clk
0:03:04.8]} 13. Bxd4 {[%clk 0:02:47]} 13... Bxd4 {[%clk 0:03:06.7]} 14. Qxd4
{[%clk 0:02:46.8]} 14... Ne5 {[%clk 0:03:08.6]} 15. Bg2 {[%clk 0:02:47.1]} 15...
Bxh3 {[%clk 0:03:08.9]} 16. f4 {[%clk 0:02:39.9]} 16... Bxg2 {[%clk 0:03:09.8]}
17. Kxg2 {[%clk 0:02:41.7]} 17... Nc6 {[%clk 0:03:10.6]} 18. Qd3 {[%clk
0:02:41.1]} 18... f5 {[%clk 0:03:08.8]} 19. exf5 {[%clk 0:02:37.7]} 19... Rxf5
{[%clk 0:03:10.7]} 20. Rae1 {[%clk 0:02:38.7]} 20... Qf6 {[%clk 0:03:04.3]} 21.
b3 {[%clk 0:02:32.4]} 21... Nb4 {[%clk 0:03:01.2]} 22. Qd2 {[%clk 0:02:28.6]}
22... c6 {[%clk 0:02:48.6]} 23. Ne4 {[%clk 0:02:27.7]} 23... Qe7 {[%clk
0:02:39.5]} 24. Qxb4 {[%clk 0:02:27]} 1-0

[Event "*** Titled Tuesday 3|2 Blitz"]
[Site "Chess.com"]
[Date "2016.01.05"]
[Round "5"]
[White "northridgehawk"]
[Black "BellJackson95"]
[Result "0-1"]
[WhiteElo "1782"]
[BlackElo "2269"]
[TimeControl "180+2"]
[EndTime "11:55:43 PST"]
[Termination "BellJackson95 won by checkmate"]

1. e4 {[%clk 0:02:52.3]} 1... e5 {[%clk 0:03:00.7]} 2. Bc4 {[%clk 0:02:49.6]}
2... Nc6 {[%clk 0:03:01.4]} 3. Nc3 {[%clk 0:02:51.2]} 3... Nf6 {[%clk
0:03:02.4]} 4. d3 {[%clk 0:02:52.8]} 4... Bc5 {[%clk 0:03:03.3]} 5. f4 {[%clk
0:02:54.1]} 5... d6 {[%clk 0:03:04.8]} 6. Nf3 {[%clk 0:02:55.2]} 6... Ng4 {[%clk
0:03:06.3]} 7. f5 {[%clk 0:02:52.4]} 7... Nf2 {[%clk 0:03:04.2]} 8. Qe2 {[%clk
0:02:53.1]} 8... Nxh1 {[%clk 0:03:04.3]} 9. Ng5 {[%clk 0:02:54.4]} 9... Nd4
{[%clk 0:02:58.6]} 10. Qh5 {[%clk 0:02:54.6]} 10... g6 {[%clk 0:03:00]} 11.
Bxf7+ {[%clk 0:02:54.7]} 11... Kd7 {[%clk 0:03:00]} 12. fxg6 {[%clk 0:02:53.3]}
12... Qf6 {[%clk 0:02:26.1]} 13. Qg4+ {[%clk 0:02:32.5]} 13... Kd8 {[%clk
0:02:19.3]} 14. Qg3 {[%clk 0:02:33.6]} 14... Nxc2+ {[%clk 0:01:38.2]} 15. Kd1
{[%clk 0:02:34.1]} 15... Nxa1 {[%clk 0:01:32.2]} 16. Qh4 {[%clk 0:02:17.4]}
16... Bg4+ {[%clk 0:01:12.1]} 17. Ne2 {[%clk 0:02:07.6]} 17... Qf1+ {[%clk
0:01:05.6]} 18. Kd2 {[%clk 0:02:05.4]} 18... Qxe2+ {[%clk 0:01:03.1]} 19. Kc3
{[%clk 0:02:06.3]} 19... Qc2# {[%clk 0:01:01.9]} 0-1

[Event "*** Titled Tuesday 3|2 Blitz"]
[Site "Chess.com"]
[Date "2016.01.05"]
[Round "5"]
[White "Cecile_Haussernot"]
[Black "Grootneus"]
[Result "1-0"]
[WhiteElo "2216"]
[BlackElo "2018"]
[TimeControl "180+2"]
[EndTime "11:56:38 PST"]
[Termination "Cecile_Haussernot won by resignation"]

1. e4 {[%clk 0:03:01.9]} 1... c5 {[%clk 0:02:25]} 2. Nf3 {[%clk 0:03:01.3]} 2...
Nc6 {[%clk 0:02:26]} 3. Nc3 {[%clk 0:03:01.7]} 3... Nf6 {[%clk 0:02:26]} 4. Bb5
{[%clk 0:02:54.7]} 4... Qc7 {[%clk 0:02:24.3]} 5. O-O {[%clk 0:02:49.4]} 5...
Nd4 {[%clk 0:02:23.8]} 6. Nxd4 {[%clk 0:02:47.7]} 6... cxd4 {[%clk 0:02:24.7]}
7. Nd5 {[%clk 0:02:48.7]} 7... Nxd5 {[%clk 0:02:26.3]} 8. exd5 {[%clk
0:02:49.8]} 8... Qc5 {[%clk 0:02:28]} 9. Qe2 {[%clk 0:02:39]} 9... Qxd5 {[%clk
0:02:24.6]} 10. c4 {[%clk 0:02:37.8]} 10... Qe6 {[%clk 0:02:04.1]} 11. Qd3
{[%clk 0:02:32]} 11... Qf6 {[%clk 0:01:59.2]} 12. b4 {[%clk 0:02:27.5]} 12... a6
{[%clk 0:01:54.6]} 13. Ba4 {[%clk 0:02:28]} 13... e5 {[%clk 0:01:55.3]} 14. f4
{[%clk 0:02:16]} 14... Bxb4 {[%clk 0:01:38]} 15. fxe5 {[%clk 0:02:14.4]} 15...
Qxe5 {[%clk 0:01:35.8]} 16. Ba3 {[%clk 0:02:09.2]} 16... Qc5 {[%clk 0:01:14.7]}
17. Rae1+ {[%clk 0:02:07]} 17... Kf8 {[%clk 0:01:15.1]} 18. Qe4 {[%clk
0:01:55.1]} 18... d3+ {[%clk 0:00:49.5]} 19. Kh1 {[%clk 0:01:53.6]} 19... g6
{[%clk 0:00:46]} 20. Qe8+ {[%clk 0:01:51.1]} 20... Kg7 {[%clk 0:00:46.6]} 21.
Qxf7+ {[%clk 0:01:51.9]} 21... Kh6 {[%clk 0:00:47]} 22. Qf4+ {[%clk 0:01:51.8]}
22... Kg7 {[%clk 0:00:47.9]} 1-0

[Event "*** Titled Tuesday 3|2 Blitz"]
[Site "Chess.com"]
[Date "2016.01.05"]
[Round "5"]
[White "nfds"]
[Black "StellarChessPro"]
[Result "1/2-1/2"]
[WhiteElo "2331"]
[BlackElo "2203"]
[TimeControl "180+2"]
[EndTime "11:57:30 PST"]
[Termination "Game drawn by agreement"]

1. e4 {[%clk 0:03:01.9]} 1... c6 {[%clk 0:03:00.9]} 2. Nc3 {[%clk 0:03:02.8]}
2... d5 {[%clk 0:03:01.2]} 3. exd5 {[%clk 0:03:04.7]} 3... cxd5 {[%clk
0:03:02.4]} 4. d4 {[%clk 0:03:06.6]} 4... Nf6 {[%clk 0:03:03.7]} 5. Nf3 {[%clk
0:03:08.5]} 5... Nc6 {[%clk 0:03:05.1]} 6. Be2 {[%clk 0:03:10.4]} 6... a6 {[%clk
0:03:05.4]} 7. O-O {[%clk 0:03:12.3]} 7... e6 {[%clk 0:03:06.7]} 8. Be3 {[%clk
0:03:14.2]} 8... Bd6 {[%clk 0:03:07.8]} 9. Ne5 {[%clk 0:03:16.1]} 9... Nxe5
{[%clk 0:03:08.1]} 10. dxe5 {[%clk 0:03:17.5]} 10... Bxe5 {[%clk 0:03:10]} 11.
Bd4 {[%clk 0:03:18.5]} 11... Bxd4 {[%clk 0:03:08.9]} 12. Qxd4 {[%clk 0:03:20.4]}
12... O-O {[%clk 0:03:09.6]} 13. Bd3 {[%clk 0:03:21]} 13... Bd7 {[%clk 0:03:10]}
14. Rae1 {[%clk 0:03:21.4]} 14... Rc8 {[%clk 0:03:10.8]} 15. Qh4 {[%clk
0:03:21.4]} 15... h6 {[%clk 0:03:09.4]} 16. Re5 {[%clk 0:03:21.7]} 16... Ne4
{[%clk 0:03:05.6]} 17. Qxd8 {[%clk 0:03:20.5]} 17... Rfxd8 {[%clk 0:03:06.2]}
18. Nxe4 {[%clk 0:03:20.7]} 18... dxe4 {[%clk 0:03:01.9]} 19. Rxe4 {[%clk
0:03:22.6]} 19... Bb5 {[%clk 0:03:00.6]} 20. Bxb5 {[%clk 0:03:22.3]} 20... axb5
{[%clk 0:03:01.8]} 21. Re2 {[%clk 0:03:21.2]} 21... Rd5 {[%clk 0:03:00.2]} 22.
c3 {[%clk 0:03:21.4]} 22... Rc4 {[%clk 0:02:57.7]} 23. a3 {[%clk 0:03:21.5]}
23... e5 {[%clk 0:02:57.4]} 24. f3 {[%clk 0:03:20.6]} 24... f6 {[%clk
0:02:56.8]} 25. Kf2 {[%clk 0:03:21.2]} 25... Kf7 {[%clk 0:02:57.9]} 26. Rfe1
{[%clk 0:03:21.7]} 26... h5 {[%clk 0:02:59.1]} 27. Re4 {[%clk 0:03:21.4]} 27...
g5 {[%clk 0:02:59.4]} 28. R1e2 {[%clk 0:03:20.4]} 28... Ke6 {[%clk 0:02:58.1]}
29. g4 {[%clk 0:03:20.5]} 29... h4 {[%clk 0:02:53.7]} 30. Ke3 {[%clk 0:03:13]}
30... f5 {[%clk 0:02:54.3]} 31. gxf5+ {[%clk 0:03:08.5]} 31... Kxf5 {[%clk
0:02:53.5]} 32. Rg2 {[%clk 0:03:09.2]} 32... Rd1 {[%clk 0:02:49.2]} 33. Reg4
{[%clk 0:02:54.8]} 33... Rxg4 {[%clk 0:02:42.3]} 34. fxg4+ {[%clk 0:02:56.7]}
34... Ke6 {[%clk 0:02:41.3]} 35. Ke4 {[%clk 0:02:53.5]} 35... Re1+ {[%clk
0:02:38.5]} 36. Kd3 {[%clk 0:02:54.3]} 36... Kd5 {[%clk 0:02:35.6]} 37. Kd2
{[%clk 0:02:50.4]} 37... Rh1 {[%clk 0:02:34.3]} 38. Ke3 {[%clk 0:02:49.5]} 38...
e4 {[%clk 0:02:32.6]} 39. Rd2+ {[%clk 0:02:50.3]} 39... Ke5 {[%clk 0:02:33.7]}
40. Rd8 {[%clk 0:02:50]} 40... Re1+ {[%clk 0:02:33.2]} 41. Kf2 {[%clk
0:02:45.5]} 41... Rb1 {[%clk 0:02:32.8]} 42. Rf8 {[%clk 0:02:36]} 42... Rxb2+
{[%clk 0:02:30.6]} 43. Ke3 {[%clk 0:02:37.2]} 43... Rxh2 {[%clk 0:02:28.5]} 44.
Rf5+ {[%clk 0:02:37.8]} 44... Ke6 {[%clk 0:02:28.7]} 45. Rxg5 {[%clk 0:02:31.4]}
45... Rc2 {[%clk 0:02:27.1]} 46. Kxe4 {[%clk 0:02:24.3]} 46... Rxc3 {[%clk
0:02:25.9]} 47. Rxb5 {[%clk 0:02:22.4]} 47... Rxa3 {[%clk 0:02:25.6]} 48. Rb6+
{[%clk 0:02:21.8]} 48... Kf7 {[%clk 0:02:23.9]} 49. Rxb7+ {[%clk 0:02:21.9]}
49... Kg6 {[%clk 0:02:24.9]} 50. Rb5 {[%clk 0:02:19.5]} 50... Rg3 {[%clk
0:02:21.5]} 51. Kf4 {[%clk 0:02:17.5]} 51... Rg1 {[%clk 0:02:21.9]} 52. Rg5+
{[%clk 0:02:15.8]} 52... Kf6 {[%clk 0:02:20]} 53. Rh5 {[%clk 0:02:16.9]} 53...
Rh1 {[%clk 0:02:21]} 54. Rh6+ {[%clk 0:02:17.6]} 54... Kg7 {[%clk 0:02:21.8]}
55. g5 {[%clk 0:02:17.9]} 55... h3 {[%clk 0:02:22.9]} 56. Kg3 {[%clk 0:02:16.1]}
56... Rg1+ {[%clk 0:02:21.5]} 57. Kf4 {[%clk 0:02:13.3]} 57... Rh1 {[%clk
0:02:20.3]} 58. Kg3 {[%clk 0:02:14.1]} 58... Rg1+ {[%clk 0:02:20.8]} 59. Kxh3
{[%clk 0:02:14.4]} 59... Rxg5 {[%clk 0:02:21.1]} 60. Rh4 {[%clk 0:02:15.1]}
60... Kg6 {[%clk 0:02:22.2]} 61. Rd4 {[%clk 0:02:15.5]} 1/2-1/2